bitfinex-derivatives/quotes_ETHF0:USTF0_20250106
["timestamp","ask_amount","ask_price","bid_price","bid_amount"]
[1736201247381,3.48002,3672.1,3672.0,40.8]
[1736201252888,5.60148812,3672.1,3672.0,40.8]
[1736201254285,3.48002,3672.1,3672.0,40.8]
[1736201256383,3.48002,3672.1,3672.0,41.07223]
[1736201257287,5.61361403,3672.1,3672.0,41.07223]
[1736201257490,5.61361403,3672.1,3672.0,40.8]
[1736201258891,3.48002,3672.1,3672.0,40.8]
[1736201263898,7.72306071,3672.1,3672.0,40.8]
[1736201268000,3.48002,3672.1,3672.0,40.8]
[1736201268397,0.2723,3671.3,3671.2,0.27228]
[1736201268899,0.2723,3671.3,3671.2,41.07228]
[1736201270800,2.40859189,3671.3,3671.2,41.07228]
[1736201272004,2.40859189,3671.3,3671.2,40.8]
[1736201272899,2.40859189,3671.3,3671.2,41.07229]
[1736201273099,2.40859189,3671.3,3671.2,40.8]
[1736201275007,3.47604466,3671.3,3671.2,40.8]
[1736201276504,0.2723,3671.3,3671.2,40.8]
[1736201278311,0.2723,3671.3,3671.2,41.07229]
[1736201278501,0.2723,3671.3,3671.2,40.8]
[1736201279013,3.47604466,3671.3,3671.2,40.8]
[1736201280308,0.2723,3671.3,3671.2,40.8]
[1736201282614,0.27233,3670.6,3670.5,4.54659426]
[1736201283016,0.27233,3670.6,3670.5,41.07234]
[1736201283908,0.27233,3670.6,3670.5,40.8]
[1736201284510,1.02293,3670.6,3670.5,41.07234]
[1736201284710,3.16028811,3670.6,3670.5,41.07234]
[1736201290011,3.16028811,3670.6,3670.5,40.8]
[1736201291420,4.22896717,3670.6,3670.5,40.8]
[1736201292619,1.02293,3670.6,3670.5,40.8]
[1736201293620,1.02293,3670.6,3670.5,41.07234]
[1736201293823,3.20603717,3670.7,3670.5,40.8]
[1736201294125,2.13702708,3670.6,3670.5,0.27234]
[1736201294624,2.13702708,3670.6,3670.5,41.08234]
[1736201295128,3.2078,3670.8,3670.5,40.81]
[1736201295423,3.2078,3670.8,3670.7,0.27233]
[1736201298824,2.13702708,3671.0,3670.5,40.8]
[1736201299121,2.13702708,3671.0,3670.9,0.27231]
[1736201299626,2.40932708,3671.1,3670.6,0.68083]
[1736201299826,2.40932708,3671.1,3671.0,0.27231]
[1736201302834,2.13702708,3671.1,3671.0,0.27231]
[1736201303239,6.09992708,3671.2,3670.7,0.68082]
[1736201303437,6.09992708,3671.2,3671.1,0.2723]
[1736201303734,5.34482708,3671.2,3671.1,0.2723]
[1736201303937,5.34482708,3671.2,3671.1,1.0823]
[1736201304632,3.2078,3671.2,3671.1,1.0823]
[1736201304833,2.13702708,3671.4,3671.3,0.27228]
[1736201305128,2.13702708,3671.4,3671.3,3.03228]
[1736201305832,2.13702708,3671.7,3671.3,2.76]
[1736201306027,2.40927708,3671.7,3671.6,0.27226]
[1736201307327,3.47828717,3671.7,3671.6,0.27226]
[1736201309135,3.20603717,3671.7,3671.6,0.27226]
[1736201309630,3.47828717,3671.7,3671.6,0.27226]
[1736201311939,0.27225,3671.7,3671.6,0.27226]
[1736201314741,1.4649,3671.8,3671.3,0.68071]
[1736201314940,1.4649,3671.8,3671.7,0.27225]
[1736201315637,1.4649,3671.8,3671.7,41.07225]
[1736201316436,3.8749349,3671.8,3671.7,41.07225]
[1736201316943,3.6026849,3671.8,3671.7,41.07225]
[1736201319140,1.4649,3671.8,3671.7,41.07225]
[1736201321446,2.1377849,3671.9,3671.8,0.27225]
[1736201322337,2.1377849,3671.9,3671.8,3.48005]
[1736201322542,2.1377849,3671.9,3671.8,44.28005]
[1736201322941,2.1377849,3672.1,3672.0,0.27223]
[1736201324646,2.1687,3672.2,3671.8,40.8]
[1736201324839,2.1687,3672.2,3672.1,0.27222]
[1736201328043,1.4291,3672.2,3672.1,0.27222]
[1736201332857,1.4291,3672.2,3672.1,1.83222]
[1736201333052,0.6916,3672.6,3672.1,1.56]
[1736201333258,2.1739,3672.6,3672.5,0.27219]
[1736201333764,2.1377849,3672.9,3672.2,4.95134]
[1736201334060,2.1377849,3672.9,3672.8,0.27217]
[1736201334358,2.1377849,3673.1,3673.0,0.27216]
[1736201335762,5.3868,3673.2,3672.7,0.68045]
[1736201336058,5.3868,3673.2,3673.1,0.27215]
[1736201336657,5.3868,3673.2,3673.1,41.07215]
[1736201337256,5.3868,3673.2,3673.1,40.8]
[1736201337451,5.3868,3673.2,3673.1,0.27215]
[1736201338963,5.3868,3673.2,3673.1,41.07215]
[1736201341459,2.179,3673.2,3673.1,44.27995]
[1736201341663,2.179,3673.2,3673.1,41.07215]
[1736201345872,2.179,3673.2,3673.1,40.8]
[1736201346072,2.45114,3673.2,3673.1,40.8]
[1736201348067,2.179,3673.2,3673.1,40.8]
[1736201348267,2.45114,3673.2,3673.1,40.8]
[1736201351374,2.45114,3673.2,3673.1,42.19]
[1736201355271,2.45114,3673.2,3673.1,40.8]
[1736201358879,8.86561735,3673.2,3673.1,40.8]
[1736201360379,8.86561735,3673.2,3673.1,41.07215]
[1736201360581,5.65894,3673.2,3673.1,41.07215]
[1736201361880,5.65894,3673.2,3673.1,40.8]
[1736201362180,7.7938711,3673.2,3673.1,40.8]
[1736201362381,7.7938711,3673.2,3673.1,41.07215]
[1736201362881,7.7938711,3673.2,3673.1,40.8]
[1736201364578,5.65894,3673.2,3673.1,40.8]
[1736201366080,5.65894,3673.2,3672.5,4.27425426]
[1736201366081,0.27219,3672.6,3672.5,4.27425426]
[1736201366385,0.27219,3672.6,3672.5,4.82425426]
[1736201366682,0.27219,3672.6,3672.5,45.62425426]
[1736201366982,2.08589,3672.6,3672.5,45.62425426]
[1736201367184,4.22242017,3672.6,3672.5,41.35]
[1736201368381,2.08589,3672.6,3672.5,41.35]
[1736201370983,2.08589,3672.6,3672.5,40.8]
[1736201371479,6.35876999,3672.6,3672.5,40.8]
[1736201372185,0.27225,3671.8,3671.7,4.27425426]
[1736201372983,3.88838,3672.1,3671.6,0.27226]
[1736201372984,0.27225,3671.7,3671.6,4.54651426]
[1736201373279,0.27225,3671.7,3671.6,45.07425426]
[1736201374088,3.48005,3671.7,3671.6,45.07425426]
[1736201374286,3.48005,3671.7,3671.6,40.8]
[1736201391992,5.32076781,3672.5,3671.6,45.3798]
[1736201392196,5.32076781,3672.5,3672.4,3.48]
[1736201392397,5.32076781,3672.5,3672.4,4.35]
[1736201392599,5.32076781,3672.5,3672.4,45.15]
[1736201393897,0.5967,3673.1,3672.4,45.15]
[1736201394098,0.5967,3673.1,3673.0,0.27216]
[1736201403309,0.5967,3673.1,3673.0,3.47996]
[1736201405210,0.5967,3673.1,3673.0,0.27216]
[1736201405507,0.5967,3673.1,3673.0,3.47996]
[1736201414623,0.6373,3673.3,3673.2,0.27214]
[1736201414825,1.2739,3673.3,3673.2,0.27214]
[1736201415325,0.5,3673.7,3673.2,0.27214]
[1736201415620,1.1366,3673.7,3673.6,0.27211]
[1736201419426,1.40871,3673.7,3673.6,0.27211]
[1736201419621,1.1366,3673.7,3673.6,0.27211]
[1736201443037,5.39125341,3673.7,3673.6,0.27211]
[1736201456148,1.1366,3673.7,3673.6,0.27211]
[1736201457449,1.1366,3673.7,3673.6,4.54636426]
[1736201464741,5.32076781,3673.8,3673.6,4.27425426]
[1736201464942,3.65381987,3673.8,3673.7,3.47991]
[1736201465150,3.65381987,3673.8,3673.7,4.21991]
[1736201465447,3.07176987,3673.8,3673.7,45.01991]
[1736201466048,6.37133534,3674.2,3673.7,45.01991]
[1736201466049,3.21220722,3674.1,3673.8,0.95235]
[1736201466248,3.21220722,3674.1,3674.0,0.27208]
[1736201467148,3.21220722,3674.6,3674.5,0.27205]
[1736201468756,3.21220722,3674.7,3674.6,0.27204]
[1736201469454,3.48423722,3674.7,3674.6,0.27204]
[1736201470255,5.19513722,3674.8,3674.7,0.27203]
[1736201471355,4.59743722,3674.8,3674.7,0.27203]
[1736201471555,3.21220722,3674.8,3674.7,0.31203]
[1736201471854,1.16286451,3674.8,3674.7,0.31203]
[1736201472051,1.16286451,3674.8,3674.7,41.11203]
[1736201472455,1.16286451,3674.8,3674.7,46.11203]
[1736201473756,1.1526,3675.6,3675.5,0.27197]
[1736201474655,1.42456,3675.6,3675.5,0.27197]
[1736201474962,1.1526,3675.6,3675.5,0.27197]
[1736201475257,1.42456,3675.6,3675.5,0.27197]
[1736201475459,0.27199,3675.3,3675.2,0.27199]
[1736201475659,1.1526,3675.6,3675.2,0.27199]
[1736201475660,0.27198,3675.4,3675.2,0.27199]
[1736201475959,0.5821,3675.3,3675.2,0.27199]
[1736201476458,0.85409,3675.3,3675.2,0.27199]
[1736201478058,0.5821,3675.3,3675.2,0.27199]
[1736201479263,0.272,3675.2,3675.0,0.272]
[1736201479759,0.8329,3675.1,3675.0,0.272]
[1736201480153,0.5609,3675.1,3674.9,3.2078]
[1736201480348,0.6085,3675.0,3674.9,5.03981]
[1736201480553,0.6085,3675.0,3674.9,3.47981]
[1736201484065,3.2078,3675.7,3675.6,0.27196]
[1736201484369,0.27193,3676.1,3675.9,0.27194]
[1736201484566,7.49074296,3676.3,3676.0,40.8]
[1736201484756,0.27193,3676.1,3676.0,40.8]
[1736201486665,0.2719,3676.6,3676.1,0.27193]
[1736201486861,3.2078,3676.8,3676.1,0.43]
[1736201487062,1.40948,3676.7,3676.6,0.27189]
[1736201489364,0.27185,3677.3,3677.2,0.27184]
[1736201489569,0.88525,3677.3,3677.2,0.27184]
[1736201489766,0.88525,3677.3,3677.2,41.07184]
[1736201490871,0.88525,3677.3,3677.2,40.8]
[1736201491166,5.31879501,3678.6,3677.2,41.54]
[1736201491373,0.27179,3678.0,3677.9,0.27179]
[1736201492071,4.28294296,3678.4,3677.3,3.2078]
[1736201492271,0.2718,3677.9,3677.8,0.2718]
[1736201494265,3.2078,3677.9,3676.9,3.2078]
[1736201494462,0.27184,3677.4,3677.3,0.27183]
[1736201494668,0.27183,3677.4,3677.3,2.9]
[1736201494879,0.27186,3677.0,3676.7,0.27188]
[1736201495170,0.5708,3676.9,3676.6,0.27189]
[1736201495375,0.5708,3676.9,3676.7,40.8]
[1736201495568,0.84268,3676.9,3676.7,40.8]
[1736201495765,0.27188,3676.8,3676.7,40.8]
[1736201495976,0.84267,3676.9,3676.7,40.8]
[1736201496574,0.85438,3676.8,3676.7,40.8]
[1736201499068,0.27194,3675.9,3675.8,3.2078]
[1736201499273,0.27194,3675.9,3675.8,4.7978]
[1736201499476,0.27194,3675.9,3675.8,45.5978]
[1736201503779,0.27194,3675.9,3675.8,42.39]
[1736201504387,0.81944,3675.9,3675.8,42.39]
[1736201513488,2.43051,3676.5,3675.8,42.39]
[1736201513489,3.2078,3676.9,3675.8,42.39]
[1736201513691,0.27192,3676.3,3676.2,0.27192]
[1736201514199,0.27192,3676.3,3676.2,41.07192]
[1736201514799,0.27192,3676.3,3676.2,40.8]
[1736201540720,3.46953488,3676.3,3676.2,40.8]
[1736201543222,0.27192,3676.3,3676.2,40.8]
[1736201545515,1.19002,3676.3,3676.2,40.8]
[1736201548020,4.28294296,3676.4,3676.2,41.46]
[1736201548215,4.28294296,3676.4,3676.3,3.47971]
[1736201548421,4.28294296,3676.4,3676.3,7.74971]
[1736201548726,4.28294296,3676.4,3676.3,48.54971]
[1736201549820,0.4302,3677.0,3676.9,0.27187]
[1736201552916,0.27188,3676.9,3676.8,0.27187]
[1736201554225,0.70207,3677.0,3676.9,0.27187]
[1736201554723,0.27188,3676.9,3676.8,0.27187]
[1736201554917,0.4302,3677.0,3676.4,4.25696176]
[1736201555118,0.4302,3677.0,3676.4,6.51696176]
[1736201555330,0.27188,3676.8,3676.7,0.27188]
[1736201555623,0.27188,3676.8,3676.7,1.09188]
[1736201556422,0.27188,3676.8,3676.7,0.82]
[1736201557816,6.84270939,3677.0,3676.3,40.8]
[1736201557817,0.27191,3676.4,3676.3,40.8]
[1736201558019,0.27191,3676.4,3676.3,40.84]
[1736201558217,0.27191,3676.4,3676.3,41.11191]
[1736201558423,0.27191,3676.4,3676.3,40.84]
[1736201560021,0.27191,3676.4,3676.3,40.8]
[1736201563228,4.55485296,3676.4,3676.3,40.8]
[1736201563433,0.27196,3675.7,3675.6,0.27195]
[1736201563728,0.27196,3675.7,3675.6,1.60195]
[1736201564029,0.27195,3675.8,3675.7,0.27194]
[1736201564230,0.27195,3675.8,3675.7,1.58194]
[1736201564431,0.27195,3675.8,3675.7,42.38194]
[1736201565337,0.27195,3675.8,3675.7,42.11]
[1736201567129,0.27195,3675.8,3675.7,42.38196]
[1736201567325,0.27195,3675.8,3675.7,42.11]
[1736201568221,0.27195,3675.8,3675.7,42.38196]
[1736201573035,0.27195,3675.8,3675.7,42.11]
[1736201573642,0.27195,3675.8,3675.7,42.38196]
[1736201575242,0.27195,3675.8,3675.7,42.11]
[1736201578136,3.47975,3675.8,3675.7,42.11]
[1736201578341,3.47975,3675.8,3675.7,40.8]
[1736201578535,3.47975,3675.8,3675.0,0.272]
[1736201578536,0.27201,3675.1,3675.0,0.272]
[1736201578734,0.27201,3675.1,3675.0,1.842]
[1736201578935,0.27201,3675.1,3675.0,42.37]
[1736201579134,1.16881,3675.1,3675.0,42.37]
[1736201581030,1.9598,3675.1,3674.4,4.25696176]
[1736201581236,0.27205,3674.5,3674.4,4.25696176]
[1736201581641,0.27205,3674.5,3674.4,40.8]
[1736201583033,0.27211,3673.8,3673.7,0.2721]
[1736201583237,3.6524,3674.4,3673.6,7.46476176]
[1736201583431,1.18711,3673.7,3673.6,7.46476176]
[1736201583636,1.18711,3673.7,3673.6,48.26476176]
[1736201584436,1.18711,3673.7,3673.6,40.8]
[1736201591852,0.27215,3673.1,3673.0,3.2078]
[1736201592051,0.27215,3673.1,3673.0,3.6378]
[1736201592251,0.27215,3673.1,3673.0,44.4378]
[1736201592545,4.54195,3673.1,3673.0,41.23]
[1736201592939,4.54195,3673.1,3673.0,40.8]
[1736201594546,4.54195,3673.1,3672.1,3.48002]
[1736201594547,0.27222,3672.2,3672.1,3.48002]
[1736201594755,0.27222,3672.2,3672.1,3.2078]
[1736201594952,0.27222,3672.2,3672.1,44.0078]
[1736201595255,0.27222,3672.2,3672.1,40.8]
[1736201599358,0.27222,3672.2,3672.1,41.07222]
[1736201599949,0.27222,3672.2,3672.1,40.8]
[1736201600346,3.2078,3673.0,3672.1,46.45]
[1736201600549,0.27217,3672.9,3672.8,0.27216]
[1736201601159,0.27218,3672.8,3672.7,0.27217]
[1736201601352,0.4211,3673.1,3672.4,3.2078]
[1736201601560,0.27219,3672.6,3672.5,0.27219]
[1736201601855,0.27219,3672.6,3672.5,1.68219]
[1736201602251,0.27219,3672.6,3672.5,42.48219]
[1736201602452,0.4211,3673.1,3672.6,0.27218]
[1736201602453,0.27218,3672.7,3672.6,0.27218]
[1736201602652,0.27219,3672.6,3672.5,41.07219]
[1736201602956,0.27219,3672.6,3672.5,41.26]
[1736201605050,0.27219,3672.6,3672.5,0.46]
[1736201605856,0.69369,3672.6,3672.5,0.46]
[1736201608247,0.27222,3672.1,3672.0,40.8]
[1736201609159,0.27222,3672.1,3672.0,41.62]
[1736201609464,0.27225,3671.7,3671.6,3.2078]
[1736201609763,0.27225,3671.7,3671.6,44.28006]
[1736201611656,0.27224,3671.9,3671.8,0.27224]
[1736201612161,0.4499,3672.0,3671.9,0.27224]
[1736201612466,0.72213,3672.0,3671.9,0.27224]
[1736201613763,0.4499,3672.0,3671.9,0.27224]
[1736201613962,0.72213,3672.0,3671.9,0.27224]
[1736201615366,0.27225,3671.9,3671.8,0.27224]
[1736201615567,0.27225,3671.7,3671.6,44.28005]
[1736201618265,0.4343,3671.8,3671.6,44.0078]
[1736201618465,0.70655,3671.8,3671.7,0.27225]
[1736201621563,0.4343,3671.8,3671.7,0.27225]
[1736201621767,0.70655,3671.8,3671.7,0.27225]
[1736201622269,0.4343,3671.8,3671.7,0.27225]
[1736201622570,0.4499,3672.0,3671.9,0.27224]
[1736201623673,0.72213,3672.0,3671.9,0.27224]
[1736201623868,0.4499,3672.0,3671.9,0.27224]
[1736201625173,0.72213,3672.0,3671.9,0.27224]
[1736201626772,0.27225,3671.8,3671.7,0.27225]
[1736201629168,0.27225,3671.7,3671.6,44.0078]
[1736201629365,0.69815,3671.7,3671.6,44.0078]
[1736201629970,0.69815,3671.7,3671.6,40.8]
[1736201631273,0.4259,3671.7,3671.6,40.8]
[1736201639381,0.4259,3671.7,3671.6,41.07226]
[1736201640278,0.69815,3671.7,3671.6,41.07226]
[1736201640582,0.4259,3671.7,3671.6,41.07226]
[1736201642978,3.88968198,3671.9,3671.8,0.27225]
[1736201642979,3.19924198,3671.9,3671.8,0.27225]
[1736201643181,3.19924198,3671.9,3671.8,1.45225]
[1736201643572,3.19924198,3671.9,3671.8,42.25225]
[1736201644584,3.92362198,3672.7,3672.6,0.27219]
[1736201644779,3.65144198,3672.7,3672.6,0.27219]
[1736201645082,3.92362198,3672.7,3672.6,0.27219]
[1736201645684,0.4522,3672.7,3672.6,41.07219]
[1736201645882,0.72438,3672.7,3672.6,41.07219]
[1736201646475,0.4522,3672.7,3672.6,41.07219]
[1736201649184,0.4522,3672.7,3672.6,41.27219]
[1736201649386,0.4522,3672.7,3672.6,44.47999]
[1736201650291,0.4522,3672.7,3672.6,48.75331329]
[1736201651582,0.4522,3672.7,3672.6,49.63943679]
[1736201653090,0.4522,3672.7,3672.6,44.47999]
[1736201653687,0.4522,3672.7,3672.6,48.74506217]
[1736201653991,0.4521,3672.8,3672.7,0.27218]
[1736201654191,0.4521,3672.8,3672.7,1.07218]
[1736201663103,0.4521,3672.8,3672.7,4.27998]
[1736201665711,0.4521,3672.8,3672.7,1.07218]
[1736201665908,0.4521,3672.8,3672.7,4.27998]
[1736201672904,0.4324,3673.1,3672.7,45.07998]
[1736201673110,0.4324,3673.1,3673.0,0.27216]
[1736201673712,0.4324,3673.1,3673.0,41.07216]
[1736201675911,0.4324,3673.1,3673.0,41.44216]
[1736201676106,3.2078,3673.8,3673.7,0.27211]
[1736201676614,3.19924198,3674.2,3674.1,0.27208]
[1736201677017,3.19924198,3674.2,3674.1,41.07208]
[1736201677211,3.47131198,3674.2,3674.1,41.07208]
[1736201677716,3.47131198,3674.2,3674.1,0.27208]
[1736201678014,0.27207,3674.2,3674.1,0.27208]
[1736201678822,3.2078,3674.3,3673.5,3.2078]
[1736201679121,0.27211,3673.8,3673.7,0.2721]
[1736201679313,0.27211,3673.8,3673.5,44.0078]
[1736201679515,0.4156,3673.7,3673.6,0.27211]
[1736201680523,0.68771,3673.7,3673.5,44.0078]
[1736201680821,0.27211,3673.6,3673.5,40.8]
[1736201681012,0.68771,3673.7,3673.6,0.27211]
[1736201682322,0.27211,3673.6,3673.5,41.07212]
[1736201682619,0.70061,3673.6,3673.5,41.07212]
[1736201684019,0.70061,3673.6,3673.5,40.8]
[1736201685319,1.76261,3673.6,3673.5,40.8]
[1736201685522,0.27216,3673.1,3673.0,0.27215]
[1736201686021,0.27215,3673.1,3672.7,4.26507217]
[1736201686213,3.47997,3672.8,3672.7,2.18907217]
[1736201686415,3.2078,3672.8,3672.5,6.40998494]
[1736201686616,0.27219,3672.6,3672.5,6.40998494]
[1736201687124,0.27219,3672.6,3672.5,45.33888494]
[1736201687321,0.27219,3672.6,3672.5,40.8]
[1736201688024,0.68047,3672.6,3671.9,0.27223]
[1736201688217,0.27223,3672.0,3671.9,0.27223]
[1736201688721,0.27223,3672.0,3671.9,41.07223]
[1736201689421,3.2078,3672.4,3671.9,40.8]
[1736201689724,3.48001,3672.4,3672.3,0.27221]
[1736201691027,6.41283092,3672.4,3672.3,0.27221]
[1736201691226,3.20503092,3672.4,3672.3,0.27221]
[1736201691621,3.20503092,3672.4,3672.3,41.07221]
[1736201692223,2.13622673,3672.6,3672.3,40.8]
[1736201692428,0.2722,3672.4,3672.3,40.8]
[1736201692621,0.2722,3672.4,3672.3,41.07221]
[1736201693021,0.2722,3672.4,3672.3,40.8]
[1736201693929,2.40842673,3672.4,3672.3,40.8]
[1736201695025,3.47723092,3672.4,3672.3,40.8]
[1736201695229,3.20503092,3672.4,3672.3,41.07221]
[1736201695721,3.47723092,3672.4,3672.3,41.07221]
[1736201695927,0.2722,3672.4,3672.3,40.8]
[1736201697530,2.40748102,3672.4,3672.3,40.8]
[1736201699630,2.40748102,3672.4,3672.3,41.2336]
[1736201700020,2.13528102,3672.4,3672.3,41.2336]
[1736201700222,2.13528102,3672.5,3672.3,41.6836]
[1736201700422,2.13528102,3672.5,3672.3,41.95581]
[1736201700423,0.2722,3672.4,3672.3,41.95581]
[1736201700725,0.2722,3672.4,3672.3,40.8]
[1736201700918,0.5151,3672.4,3672.3,40.8]
[1736201701123,0.27224,3671.9,3671.8,0.4283]
[1736201701317,0.27224,3671.9,3671.4,0.27227]
[1736201701318,0.27227,3671.5,3671.4,0.27227]
[1736201701526,0.27227,3671.5,3671.4,41.07227]
[1736201701718,3.2078,3672.0,3671.4,40.8]
[1736201701927,0.27224,3671.9,3671.8,0.27224]
[1736201702128,3.2078,3672.0,3671.4,40.8]
[1736201702321,3.2078,3672.0,3671.6,0.27226]
[1736201702517,0.27226,3671.7,3671.6,0.27226]
[1736201707731,7.08424045,3672.1,3671.4,40.8]
[1736201707732,0.68058,3672.0,3671.4,40.8]
[1736201708026,0.27226,3671.6,3671.5,0.27227]
[1736201709933,0.27227,3671.5,3671.4,40.8]
[1736201710327,0.27226,3671.7,3671.6,0.27226]
[1736201710834,0.27225,3671.8,3671.6,0.27226]
[1736201711135,3.2078,3672.1,3672.0,0.27223]
[1736201711434,2.13386045,3672.2,3672.0,0.27223]
[1736201711435,2.40608045,3672.2,3672.0,0.27222]
[1736201711632,2.40608045,3672.2,3672.1,41.07222]
[1736201712441,0.27222,3672.2,3672.1,41.07222]
[1736201712631,3.2078,3672.6,3672.5,0.27219]
[1736201712830,1.44166045,3672.7,3672.6,0.27219]
[1736201713029,1.44166045,3672.7,3672.6,0.70749]
[1736201713635,1.44166045,3672.7,3672.1,40.8]
[1736201713836,0.68045,3672.8,3672.1,40.8]
[1736201714030,0.27222,3672.3,3672.1,40.8]
[1736201714233,0.27222,3672.3,3672.2,0.27222]
[1736201714431,0.27222,3672.3,3672.1,40.8]
[1736201714432,0.27222,3672.2,3672.1,40.8]
[1736201714831,0.27222,3672.2,3672.1,41.07222]
[1736201715134,0.27222,3672.2,3672.1,40.8]
[1736201715834,0.27222,3672.2,3672.1,41.07222]
[1736201716034,0.27222,3672.2,3672.1,40.8]
[1736201716426,0.27221,3672.3,3672.1,41.07222]
[1736201716628,0.27222,3672.2,3672.1,40.8]
[1736201718437,6.41283092,3672.9,3672.1,44.0078]
[1736201718944,0.2722,3672.4,3672.2,0.27221]
[1736201719143,0.2722,3672.4,3672.3,0.27221]
[1736201720140,0.27222,3672.2,3672.1,40.8]
[1736201721947,3.88826,3672.7,3672.1,40.8]
[1736201722141,3.2078,3672.7,3672.1,40.8]
[1736201722444,0.27217,3672.9,3672.3,0.95273]
[1736201722739,3.47719092,3673.0,3672.8,0.27217]
[1736201722941,3.47719092,3673.0,3672.9,41.6582]
[1736201723338,3.47719092,3673.0,3672.9,41.93036]
[1736201723531,3.20503092,3673.0,3672.9,41.6582]
[1736201723736,3.20503092,3673.0,3672.9,41.93036]
[1736201724733,3.2078,3673.1,3672.9,41.93036]
[1736201725032,0.27216,3673.0,3672.9,41.93036]
[1736201726837,3.2078,3673.1,3673.0,0.27216]
[1736201727454,3.20503092,3673.2,3673.1,0.27215]
[1736201728648,0.27213,3673.4,3673.0,0.4363]
[1736201728944,3.47715092,3673.5,3673.4,0.27213]
[1736201729341,0.27213,3673.4,3673.3,0.27213]
[1736201730843,3.20503092,3673.5,3673.4,0.27213]
[1736201731439,3.47715092,3673.5,3673.4,0.27213]
[1736201731636,3.20503092,3673.5,3673.4,0.27213]
[1736201732640,0.27212,3673.6,3673.1,0.68038]
[1736201732946,0.27212,3673.6,3673.5,0.27212]
[1736201734841,3.20503092,3673.8,3673.1,0.68038]
[1736201735041,3.20503092,3673.8,3673.7,0.27211]
[1736201735346,3.20503092,3673.8,3673.0,0.4363]
[1736201735347,3.20503092,3673.9,3673.8,0.2721]
[1736201735740,3.20503092,3673.9,3673.8,41.0721]
[1736201736950,0.27209,3674.0,3673.9,0.27209]
[1736201738246,0.27208,3674.1,3673.9,0.27209]
[1736201739043,0.27208,3674.0,3673.9,0.27209]
[1736201748350,0.27208,3674.0,3673.9,0.72289]
[1736201752260,0.27208,3674.1,3674.0,0.27208]
[1736201753164,0.4198,3674.4,3673.9,0.4508]
[1736201753358,0.27208,3674.0,3673.9,0.72289]
[1736201757965,0.27209,3673.9,3673.8,40.8]
[1736201758262,0.27212,3673.5,3673.4,0.4346]
[1736201758464,0.27212,3673.5,3673.4,1.25673]
[1736201758665,0.27212,3673.5,3673.4,42.05673]
[1736201760462,6.41283092,3674.2,3673.4,41.7846]
[1736201760766,0.27209,3673.9,3673.8,0.27209]
[1736201761665,0.27209,3674.0,3673.9,0.27209]
[1736201761867,0.2721,3673.9,3673.8,0.27209]
[1736201762968,0.27208,3674.1,3674.0,0.27208]
[1736201764569,0.4232,3674.3,3673.7,4.31176]
[1736201764570,0.27207,3674.2,3674.1,0.27207]
[1736201765563,0.4232,3674.3,3673.7,3.6315]
[1736201765862,0.27208,3674.1,3674.0,0.27208]
[1736201767665,0.27209,3674.0,3673.9,0.27208]
[1736201773174,3.20503092,3674.1,3673.7,0.4237]
[1736201773375,3.47711092,3674.1,3674.0,0.27208]
[1736201776978,0.27208,3674.1,3674.0,0.27208]
[1736201779379,4.55501296,3674.2,3674.1,0.27208]
[1736201786281,4.28294296,3674.2,3674.1,0.27208]
[1736201787183,4.28294296,3674.2,3674.1,41.07208]
[1736201788183,3.21090769,3674.2,3674.1,46.10024754]
[1736201790783,2.74332196,3674.6,3674.1,54.30596754]
[1736201790982,0.65120695,3674.7,3674.5,3.2078]
[1736201791184,0.65120695,3674.7,3674.6,1.33404]
[1736201791381,0.65120695,3674.7,3674.6,2.98404]
[1736201791777,0.65120695,3674.7,3674.6,43.78404]
[1736201792288,0.4379,3675.5,3675.4,0.27198]
[1736201792881,0.4379,3675.5,3675.4,41.07198]
[1736201797885,0.27199,3675.3,3675.2,3.2078]
[1736201799293,0.27199,3675.2,3675.1,41.072]
[1736201799492,1.14119,3675.2,3675.1,41.532]
[1736201800194,1.14119,3675.2,3675.1,41.26]
[1736201800997,1.14119,3675.2,3675.1,41.532]
[1736201801390,1.14119,3675.2,3675.1,41.26]
[1736201801590,1.14119,3675.2,3675.1,0.46]
[1736201802094,1.14119,3675.2,3675.1,41.26]
[1736201804799,0.8692,3675.2,3675.1,41.532]
[1736201805000,0.4294,3675.2,3675.1,41.532]
[1736201806596,0.70139,3675.2,3675.1,41.532]
[1736201816501,0.70139,3675.2,3675.1,41.26]
[1736201823002,4.2663373,3675.7,3675.1,41.26]
[1736201823302,0.27198,3675.6,3675.5,0.27196]
[1736201823706,0.27198,3675.6,3675.5,0.53196]
[1736201825309,0.4453,3675.8,3675.5,0.26]
[1736201825505,0.27196,3675.8,3675.7,0.27196]
[1736201826008,0.69775,3675.9,3675.8,0.27195]
[1736201826205,0.27195,3675.9,3675.8,0.27195]
[1736201826399,0.4438,3676.1,3675.6,3.2078]
[1736201826604,0.4438,3676.1,3676.0,0.27193]
[1736201826803,0.71573,3676.1,3676.0,0.27193]
[1736201827201,7.4741373,3676.6,3676.0,0.41]
[1736201827401,4.2663373,3676.6,3676.5,0.2719]
[1736201827606,4.2663373,3676.6,3676.1,0.8731]
[1736201827607,0.27189,3676.6,3676.4,0.2719]
[1736201827801,0.27189,3676.7,3676.5,41.07189]
[1736201828007,0.4438,3676.8,3676.5,40.8]
[1736201828207,0.27189,3676.7,3676.5,41.07189]
[1736201828409,0.4438,3676.8,3676.5,41.07189]
[1736201828410,0.27189,3676.6,3676.5,40.8]